bitfinex-derivatives/quotes_BTCF0:USTF0_20241117
["timestamp","ask_amount","ask_price","bid_price","bid_amount"]
[1731807054565,0.055144,90630.0,90629.0,0.0323]
[1731807056071,0.0051,90640.0,90629.0,0.14263934]
[1731807056377,0.3608,90641.0,90633.0,0.055142]
[1731807057057,0.3608,90641.0,90634.0,0.16547426]
[1731807057058,0.055138,90640.0,90634.0,0.16547426]
[1731807057464,0.055138,90640.0,90634.0,0.055141]
[1731807057671,0.055139,90638.0,90634.0,0.055141]
[1731807057872,0.3608,90641.0,90639.0,0.12472314]
[1731807058263,0.055136,90643.0,90639.0,0.12472314]
[1731807058570,0.055137,90642.0,90640.0,0.11033021]
[1731807060880,0.055141,90635.0,90633.0,0.08316]
[1731807061472,0.055141,90635.0,90634.0,0.11032534]
[1731807063471,0.055141,90635.0,90633.0,0.08316]
[1731807064069,0.11005492,90635.0,90633.0,0.08316]
[1731807064370,0.055141,90635.0,90633.0,0.08316]
[1731807067183,0.05596221,90643.0,90629.0,0.51930914]
[1731807067184,0.055144,90630.0,90629.0,0.64784265]
[1731807067388,0.055144,90630.0,90629.0,0.64636265]
[1731807067572,0.055144,90630.0,90629.0,0.448244]
[1731807067772,0.055144,90630.0,90629.0,0.55858334]
[1731807068589,0.055144,90630.0,90629.0,0.8223173]
[1731807069704,0.055144,90630.0,90629.0,0.55858334]
[1731807070379,0.055144,90630.0,90629.0,0.50343934]
[1731807070584,0.12472914,90630.0,90628.0,0.33028408]
[1731807070881,0.12472914,90630.0,90628.0,0.0663]
[1731807071272,0.12472914,90630.0,90629.0,0.19799624]
[1731807071580,0.12472914,90630.0,90628.0,0.33028408]
[1731807072175,0.055145,90629.0,90628.0,0.33028408]
[1731807072681,0.055145,90629.0,90628.0,0.33044573]
[1731807073073,0.055145,90629.0,90628.0,0.2973437]
[1731807073277,0.055145,90629.0,90628.0,0.29734129]
[1731807073485,0.055145,90629.0,90628.0,0.0332]
[1731807073887,0.055148,90624.0,90623.0,0.3855144]
[1731807074090,0.055148,90624.0,90623.0,0.055148]
[1731807074287,0.12473214,90625.0,90624.0,0.11034056]
[1731807074501,0.06958514,90625.0,90622.0,0.3303664]
[1731807074790,0.06958514,90625.0,90623.0,0.11034665]
[1731807074986,0.055148,90624.0,90623.0,0.11034665]
[1731807075285,0.055149,90622.0,90621.0,0.08308]
[1731807075483,0.055149,90622.0,90621.0,0.76779442]
[1731807075697,0.055149,90622.0,90621.0,0.52379305]
[1731807076277,0.055149,90622.0,90621.0,0.24857665]
[1731807076585,0.055149,90622.0,90621.0,0.60145799]
[1731807076781,0.055149,90622.0,90621.0,0.93188642]
[1731807076986,0.055149,90622.0,90621.0,0.60145799]
[1731807078383,0.055149,90622.0,90621.0,0.51837799]
[1731807078981,0.055149,90622.0,90621.0,0.16549665]
[1731807079285,0.055145,90629.0,90628.0,0.055144]
[1731807079594,0.055145,90629.0,90628.0,0.415944]
[1731807079888,0.055145,90629.0,90628.0,0.52629308]
[1731807080295,0.055145,90629.0,90628.0,0.85679934]
[1731807080790,0.055145,90629.0,90628.0,0.52629308]
[1731807081581,0.055145,90629.0,90628.0,0.47114908]
[1731807081984,0.05555731,90633.0,90626.0,0.33050626]
[1731807081985,0.055146,90627.0,90626.0,0.33050626]
[1731807082297,0.055148,90624.0,90623.0,0.33050626]
[1731807082500,0.05555731,90633.0,90623.0,0.33054145]
[1731807082792,0.055143,90632.0,90631.0,0.26443124]
[1731807083102,0.055146,90626.0,90625.0,0.055147]
[1731807083692,0.055146,90626.0,90625.0,0.51840252]
[1731807084200,0.12611356,90636.0,90625.0,0.51840252]
[1731807084201,0.055144,90631.0,90630.0,0.055144]
[1731807084493,0.055144,90630.0,90629.0,0.3608]
[1731807084802,0.055145,90629.0,90628.0,0.055145]
[1731807085396,0.055145,90629.0,90628.0,0.52628313]
[1731807085593,0.055145,90629.0,90628.0,0.85680202]
[1731807085893,0.055145,90629.0,90628.0,1.20978956]
[1731807086286,0.055145,90629.0,90628.0,0.85680202]
[1731807086486,0.055145,90629.0,90628.0,0.52628313]
[1731807087492,0.055145,90629.0,90628.0,0.47113813]
[1731807087791,0.055145,90629.0,90628.0,0.11033813]
[1731807088192,0.055145,90628.0,90626.0,0.33051889]
[1731807088394,0.055145,90628.0,90627.0,0.44085945]
[1731807089290,0.055145,90628.0,90627.0,0.46223287]
[1731807089497,0.055145,90628.0,90627.0,0.79280911]
[1731807089699,0.055145,90628.0,90627.0,0.79290761]
[1731807089894,0.055145,90628.0,90620.0,0.39811236]
[1731807089895,0.055145,90628.0,90626.0,0.33062795]
[1731807090084,0.055146,90626.0,90625.0,0.33062795]
[1731807090289,0.05500733,90628.0,90622.0,0.33062795]
[1731807090596,0.055145,90628.0,90626.0,0.26451069]
[1731807091289,0.055145,90628.0,90619.0,0.0658]
[1731807091290,0.18690134,90628.0,90627.0,0.19837383]
[1731807091700,0.18690134,90628.0,90626.0,0.19837383]
[1731807091999,0.52549542,90634.0,90624.0,0.19837383]
[1731807092000,0.055147,90625.0,90624.0,0.19837383]
[1731807092298,0.055147,90625.0,90623.0,0.19837197]
[1731807092299,0.3608,90625.0,90623.0,0.19837197]
[1731807092495,0.12473514,90621.0,90619.0,0.26451069]
[1731807092703,0.055151,90619.0,90618.0,0.26451069]
[1731807093394,0.20144306,90621.0,90616.0,0.26451069]
[1731807093700,0.055155,90612.0,90610.0,0.11035274]
[1731807094083,0.055157,90610.0,90608.0,0.3608]
[1731807094508,0.055157,90610.0,90609.0,0.11035274]
[1731807097702,0.055157,90610.0,90609.0,0.37467911]
[1731807098207,0.055157,90610.0,90609.0,0.26432637]
[1731807098502,0.055157,90610.0,90609.0,0.1103637]
[1731807099000,0.055157,90610.0,90607.0,0.08304]
[1731807099001,0.055157,90608.0,90607.0,0.08304]
[1731807099400,0.055157,90608.0,90607.0,0.1934037]
[1731807101306,0.055157,90608.0,90607.0,0.52403165]
[1731807101507,0.055157,90608.0,90607.0,0.87363294]
[1731807101693,0.055157,90608.0,90607.0,0.1934037]
[1731807103108,0.055157,90608.0,90601.0,0.0648]
[1731807103109,0.055157,90608.0,90606.0,0.2642728]
[1731807103300,0.055157,90608.0,90590.0,0.3708]
[1731807103301,0.055159,90606.0,90605.0,0.26424351]
[1731807103496,0.055159,90606.0,90604.0,0.26424351]
[1731807103699,0.3911,90609.0,90603.0,0.26424351]
[1731807103999,0.05516,90604.0,90603.0,0.26424351]
[1731807104197,0.05516,90604.0,90602.0,0.26424351]
[1731807105197,0.055161,90602.0,90601.0,0.26424351]
[1731807105494,0.055161,90602.0,90601.0,0.37461513]
[1731807108200,0.055161,90602.0,90601.0,0.11037162]
[1731807110103,0.12474614,90602.0,90600.0,0.1]
[1731807110304,0.3608,90601.0,90600.0,0.1]
[1731807114111,0.055161,90602.0,90600.0,0.21037466]
[1731807114748,0.055161,90602.0,90601.0,0.0614]
[1731807115314,0.055161,90602.0,90601.0,0.17177405]
[1731807119314,0.055161,90602.0,90601.0,0.36981029]
[1731807119516,0.055161,90602.0,90601.0,0.17177405]
[1731807120022,0.055161,90602.0,90601.0,0.36981029]
[1731807120322,0.055161,90602.0,90601.0,0.17177405]
[1731807121024,0.055161,90602.0,90601.0,0.11037405]
[1731807121235,0.055161,90602.0,90600.0,0.2982077]
[1731807121520,0.055161,90602.0,90600.0,0.1]
[1731807121826,0.06958514,90601.0,90600.0,0.037634]
[1731807122323,0.055162,90600.0,90598.0,0.00165551]
[1731807122627,0.21831992,90600.0,90598.0,0.00165551]
[1731807122922,0.32468429,90600.0,90598.0,0.00165551]
[1731807123329,0.19282637,90600.0,90587.0,0.19820293]
[1731807123514,0.32468429,90600.0,90587.0,0.25461631]
[1731807123813,0.3608,90595.0,90587.0,0.3649928]
[1731807124018,0.05517,90588.0,90587.0,0.1981832]
[1731807124220,0.05517,90588.0,90586.0,0.1981832]
[1731807124412,0.10636437,90593.0,90584.0,0.1981832]
[1731807124413,0.055171,90586.0,90584.0,0.1981832]
[1731807124620,0.055171,90586.0,90584.0,0.30856639]
[1731807124819,0.055171,90586.0,90584.0,0.1981832]
[1731807125018,0.055171,90586.0,90585.0,0.11039111]
[1731807125523,0.10636437,90593.0,90582.0,0.1981832]
[1731807125524,0.055172,90584.0,90582.0,0.1981832]
[1731807125907,0.055173,90582.0,90581.0,0.30857614]
[1731807126109,0.46716437,90586.0,90578.0,0.19814082]
[1731807126312,0.10636437,90579.0,90578.0,0.19811378]
[1731807126512,0.10636437,90579.0,90576.0,0.19811378]
[1731807126713,0.055179,90572.0,90571.0,0.26424351]
[1731807127225,0.055179,90572.0,90571.0,0.11040147]
[1731807127433,0.055179,90572.0,90571.0,0.37464498]
[1731807127626,0.055179,90572.0,90570.0,0.26424351]
[1731807127926,0.055179,90572.0,90571.0,0.11041]
[1731807128223,0.055179,90572.0,90571.0,0.0324]
[1731807128523,0.055179,90572.0,90571.0,0.14281]
[1731807128727,0.055179,90572.0,90571.0,0.0324]
[1731807128932,0.055179,90572.0,90571.0,0.40705351]
[1731807129133,0.055179,90572.0,90571.0,0.14281]
[1731807131524,0.055179,90572.0,90571.0,0.50361]
[1731807131716,0.055179,90572.0,90571.0,0.14281]
[1731807132621,0.055179,90572.0,90571.0,0.40682966]
[1731807134133,0.055179,90572.0,90571.0,0.14281]
[1731807134524,0.055179,90572.0,90571.0,0.17471]
[1731807134831,0.055179,90572.0,90571.0,0.43872966]
[1731807135127,0.055179,90572.0,90571.0,0.17471]
[1731807135727,0.055179,90572.0,90571.0,0.43872966]
[1731807136129,0.055179,90572.0,90571.0,0.17471]
[1731807136834,0.055179,90572.0,90571.0,0.43872966]
[1731807138031,0.055179,90572.0,90571.0,0.17471]
[1731807142337,0.055179,90572.0,90571.0,0.43872966]
[1731807142536,0.055179,90572.0,90571.0,0.17471]
[1731807143430,0.055179,90572.0,90571.0,0.37281186]
[1731807143732,0.055179,90572.0,90571.0,0.17471]
[1731807144239,0.055179,90572.0,90571.0,0.11041]
[1731807144648,0.055181,90570.0,90569.0,0.08408]
[1731807145243,0.055181,90570.0,90569.0,0.45850966]
[1731807145537,0.055181,90570.0,90569.0,0.19449]
[1731807146835,0.055181,90570.0,90569.0,0.11041]
[1731807147230,0.055182,90568.0,90567.0,0.08414302]
[1731807147633,0.055182,90568.0,90567.0,0.19455546]
[1731807148231,0.055182,90568.0,90567.0,0.86518775]
[1731807148439,0.055182,90568.0,90567.0,0.19455546]
[1731807151231,0.055182,90568.0,90567.0,0.11047546]
[1731807152442,0.055182,90568.0,90556.0,0.06778576]
[1731807152443,0.055188,90558.0,90556.0,0.06778576]
[1731807152647,0.055188,90558.0,90522.0,0.46251758]
[1731807152648,0.055191,90554.0,90522.0,0.46251758]
[1731807152847,0.055191,90554.0,90535.0,0.0317]
[1731807152848,0.055201,90536.0,90535.0,0.0317]
[1731807153152,0.416001,90536.0,90535.0,0.02094168]
[1731807153352,0.055221,90504.0,90503.0,0.065]
[1731807153735,0.055221,90504.0,90500.0,0.004638]
[1731807153736,0.055223,90501.0,90500.0,0.004638]
[1731807154045,0.48584058,90501.0,90500.0,1e-08]
[1731807154549,0.416023,90501.0,90500.0,1e-08]
[1731807154951,0.10894522,90501.0,90500.0,1e-08]
[1731807155338,0.055223,90501.0,90500.0,1e-08]
[1731807156449,0.16153881,90504.0,90478.0,0.3608]
[1731807156450,0.055233,90485.0,90478.0,0.3608]
[1731807156643,0.055233,90484.0,90478.0,0.3608]
[1731807156951,0.055233,90484.0,90479.0,0.11049662]
[1731807157351,0.3608,90496.0,90479.0,0.11049662]
[1731807157534,0.055233,90485.0,90479.0,0.11049662]
[1731807157939,0.0051,90499.0,90479.0,0.10749662]
[1731807158143,0.055222,90502.0,90496.0,0.3608]
[1731807158454,0.055224,90499.0,90497.0,0.0324]
[1731807159251,0.055224,90499.0,90498.0,0.11049967]
[1731807161849,0.055224,90499.0,90498.0,0.47129967]
[1731807162540,0.3608,90506.0,90498.0,0.47129967]
[1731807163541,0.055224,90499.0,90498.0,0.11049967]
[1731807165644,0.055229,90490.0,90489.0,0.13172]
[1731807165953,0.055229,90490.0,90489.0,0.0322]
[1731807166144,0.055229,90490.0,90489.0,0.14269906]
[1731807169339,0.055229,90490.0,90489.0,0.11049906]
[1731807169742,0.055231,90487.0,90486.0,0.09952]
[1731807170246,0.055231,90487.0,90486.0,0.21003005]
[1731807170847,0.055231,90487.0,90486.0,0.11051005]
[1731807171241,0.055235,90481.0,90480.0,0.0328]
[1731807171956,0.055235,90481.0,90480.0,0.14331372]
[1731807172153,0.10659086,90496.0,90476.0,0.032]
[1731807172154,0.055237,90478.0,90477.0,0.05197934]
[1731807172745,0.055237,90478.0,90477.0,0.16250039]
[1731807173245,0.055237,90478.0,90477.0,0.11052105]
[1731807175848,0.05524,90472.0,90470.0,0.09956]
[1731807176466,0.05524,90472.0,90471.0,0.11052471]
[1731807176958,0.10659086,90479.0,90468.0,0.09956]
[1731807177157,0.055242,90469.0,90468.0,0.09956]
[1731807177550,0.055242,90469.0,90468.0,0.21009204]
[1731807178266,0.055242,90469.0,90468.0,0.11053204]
[1731807180652,0.10659086,90496.0,90471.0,0.05524]
[1731807180653,0.18581053,90475.0,90471.0,0.05524]
[1731807180852,0.055239,90475.0,90472.0,0.05524]
[1731807181154,0.18581053,90475.0,90473.0,0.05524]
[1731807181455,0.02210763,90488.0,90471.0,0.10659086]
[1731807181456,0.13057153,90476.0,90471.0,0.10659086]
[1731807181657,0.08057153,90478.0,90471.0,0.10659086]
[1731807181866,0.055236,90480.0,90477.0,0.416037]
[1731807182162,0.16385481,90478.0,90477.0,0.416037]
[1731807182461,0.055236,90480.0,90478.0,0.1105296]
[1731807182758,0.3608,90490.0,90479.0,0.10659086]
[1731807182759,0.16386637,90484.0,90479.0,0.10659086]
[1731807182953,0.16386637,90488.0,90483.0,0.10659086]
[1731807183154,0.16386637,90488.0,90479.0,0.4713296]
[1731807183155,0.19570748,90491.0,90487.0,0.52262186]
[1731807183358,0.05371615,90490.0,90488.0,0.08693]
[1731807183550,0.19570748,90494.0,90488.0,0.086931]
[1731807183756,0.16416712,90489.0,90488.0,0.086931]
[1731807184260,0.16416712,90489.0,90488.0,0.19743922]
[1731807184461,0.16416712,90490.0,90488.0,0.19743922]
[1731807184652,0.25093348,90496.0,90488.0,0.19743922]
[1731807184653,0.16416712,90492.0,90488.0,0.19743922]
[1731807184853,0.16416712,90493.0,90488.0,0.19743922]
[1731807185050,0.05523,90490.0,90488.0,0.14220822]
[1731807185652,0.05523,90490.0,90489.0,0.09956]
[1731807185861,0.21940087,90490.0,90489.0,0.09956]
[1731807186165,0.16417087,90491.0,90489.0,0.09956]
[1731807186364,0.16417087,90491.0,90489.0,0.21007066]
[1731807186556,0.16417087,90492.0,90489.0,0.21007066]
[1731807186760,0.16417087,90491.0,90489.0,0.21007066]
[1731807186953,0.055227,90494.0,90489.0,0.21007066]
[1731807186954,0.16417087,90490.0,90489.0,0.21007066]
[1731807187463,0.05371432,90490.0,90489.0,0.21007066]
[1731807188257,0.05371432,90490.0,90489.0,0.11051066]
[1731807188455,0.1641522,90490.0,90489.0,0.21283066]
[1731807188761,0.055229,90491.0,90489.0,0.21283066]
[1731807189163,0.055229,90491.0,90489.0,0.11051066]
[1731807189363,0.055229,90491.0,90490.0,0.10232]
[1731807189560,0.1641522,90492.0,90490.0,0.10232]
[1731807189779,0.1641522,90493.0,90490.0,0.10232]
[1731807189962,0.1641522,90493.0,90491.0,0.11050822]
[1731807190272,0.1641522,90492.0,90491.0,0.11050822]
[1731807190661,0.055228,90493.0,90491.0,0.11050822]
[1731807191058,0.05371531,90492.0,90491.0,0.11050822]
[1731807191272,0.055229,90491.0,90489.0,0.10232]
[1731807191467,0.16413266,90490.0,90489.0,0.10232]
[1731807191769,0.21936166,90491.0,90489.0,0.10232]
[1731807191973,0.16413266,90490.0,90489.0,0.21283005]
[1731807192465,0.055229,90491.0,90489.0,0.11051005]
[1731807192665,0.25093648,90491.0,90489.0,0.21283005]
[1731807192865,0.05371704,90490.0,90489.0,0.21283005]
[1731807193660,0.16415449,90490.0,90489.0,0.21283005]
[1731807193970,0.055229,90491.0,90489.0,0.21283005]
[1731807194276,0.16415123,90490.0,90489.0,0.21283005]
[1731807194470,0.16415123,90490.0,90489.0,0.11051005]
[1731807194861,0.055229,90491.0,90489.0,0.11051005]
[1731807195061,0.0537187,90490.0,90489.0,0.11051005]
[1731807196177,0.055232,90486.0,90485.0,0.0301]
[1731807196675,0.055232,90486.0,90485.0,0.14061005]
[1731807197576,0.055232,90486.0,90484.0,0.10904703]
[1731807197778,0.055232,90486.0,90485.0,0.11051494]
[1731807198679,0.055232,90486.0,90485.0,0.47131494]
[1731807199978,0.16417519,90490.0,90485.0,0.47131494]
[1731807200172,0.21940419,90491.0,90489.0,0.05523]
[1731807200476,0.055229,90491.0,90490.0,0.031]
[1731807200865,0.055229,90491.0,90490.0,0.14151494]
[1731807201067,0.0311,90496.0,90490.0,0.14151494]
[1731807201068,0.16417519,90496.0,90490.0,0.14151494]
[1731807201290,0.16417519,90500.0,90499.0,0.055224]
[1731807201585,0.055223,90501.0,90499.0,0.055224]
[1731807201966,0.055219,90507.0,90500.0,0.055223]
[1731807202293,0.0327,90510.0,90500.0,0.055223]
[1731807202588,0.05522,90505.0,90501.0,0.11049723]
[1731807202789,0.05522,90505.0,90503.0,0.3608]
[1731807202974,0.055218,90509.0,90503.0,0.416021]
[1731807203170,0.055218,90509.0,90503.0,0.3608]
[1731807203380,0.055215,90513.0,90504.0,0.11049357]
[1731807203569,0.055215,90513.0,90511.0,0.3608]
[1731807204179,0.055215,90513.0,90512.0,0.11048258]
[1731807205478,0.16417519,90520.0,90512.0,0.11048258]
[1731807205479,0.055212,90519.0,90512.0,0.11048258]
[1731807205684,0.16417519,90520.0,90512.0,0.11048258]
[1731807205685,0.055212,90518.0,90512.0,0.11048258]
[1731807205883,0.055212,90518.0,90512.0,0.16569758]
[1731807206578,0.055214,90515.0,90512.0,0.16569758]
[1731807206770,0.055215,90513.0,90512.0,0.11048258]
[1731807206969,0.055217,90511.0,90510.0,0.10232]
[1731807207569,0.055217,90511.0,90510.0,0.21280075]
[1731807209086,0.055217,90511.0,90510.0,0.11048075]
[1731807209469,0.18627248,90521.0,90502.0,0.10228]
[1731807209470,0.055221,90503.0,90502.0,0.10228]
[1731807209672,0.10659086,90510.0,90498.0,0.0312]
[1731807209872,0.055226,90495.0,90493.0,0.3608]
[1731807210281,0.10659086,90503.0,90491.0,0.10228]
[1731807210282,0.055228,90492.0,90491.0,0.10228]
[1731807210497,0.055231,90488.0,90487.0,0.0319]
[1731807210995,0.055231,90488.0,90487.0,0.14239235]
[1731807212494,0.055231,90488.0,90487.0,0.11049235]
[1731807213487,0.055237,90477.0,90476.0,0.0301]
[1731807213693,0.055242,90470.0,90468.0,0.10228]
[1731807214097,0.055242,90470.0,90469.0,0.1105351]
[1731807214595,0.055242,90470.0,90466.0,0.10393757]
[1731807214981,0.055242,90470.0,90467.0,0.1105351]
[1731807215176,0.055243,90469.0,90467.0,0.1105351]
[1731807217196,0.0302,90481.0,90467.0,0.1105351]
[1731807217381,0.055239,90475.0,90467.0,0.1105351]
[1731807217586,0.0302,90481.0,90467.0,0.1105351]
[1731807217776,0.05524,90473.0,90467.0,0.1105351]
[1731807217976,0.055241,90472.0,90467.0,0.1105351]
[1731807218382,0.055241,90471.0,90467.0,0.1105351]
[1731807218793,0.055241,90471.0,90468.0,0.0312]
[1731807219597,0.055241,90471.0,90469.0,0.1105351]
[1731807220098,0.055241,90471.0,90469.0,0.4713351]
[1731807221089,0.0051,90487.0,90469.0,0.4713351]
[1731807221387,0.055232,90486.0,90478.0,0.46739086]
[1731807221591,0.055232,90486.0,90479.0,0.0325]
[1731807221784,0.055232,90486.0,90481.0,0.055234]
[1731807221988,0.02210769,90492.0,90479.0,0.0325]
[1731807221989,0.02210769,90492.0,90482.0,0.0327]
[1731807222294,0.0051,90505.0,90491.0,0.3608]
[1731807222484,0.055225,90498.0,90492.0,0.032]
[1731807222683,0.055226,90496.0,90492.0,0.032]
[1731807223097,0.055226,90496.0,90493.0,0.1105186]
[1731807223393,0.055227,90495.0,90493.0,0.1105186]
[1731807223783,0.055221,90503.0,90493.0,0.1105186]
[1731807224399,0.033,90513.0,90493.0,0.1105186]
[1731807224400,0.055218,90509.0,90499.0,0.3608]
[1731807224586,0.055218,90509.0,90501.0,0.055222]
[1731807224783,0.055218,90509.0,90500.0,0.0317]
[1731807224997,0.055218,90509.0,90503.0,0.055221]
[1731807225394,0.02210532,90511.0,90503.0,0.055221]
[1731807225597,0.055221,90505.0,90503.0,0.11049418]
[1731807225795,0.02210532,90511.0,90503.0,0.16571518]
[1731807225996,0.02210532,90511.0,90503.0,0.055221]
[1731807226195,0.07732232,90511.0,90503.0,0.055221]
[1731807226400,0.055217,90510.0,90503.0,0.16571396]
[1731807227496,0.055218,90509.0,90503.0,0.16571396]
[1731807228305,0.02210532,90511.0,90503.0,0.16571396]
[1731807228992,0.02210532,90511.0,90503.0,0.22027417]
[1731807229192,0.055218,90508.0,90503.0,0.16571396]
[1731807229387,0.02210532,90511.0,90503.0,0.11049296]
[1731807229700,0.02210532,90511.0,90501.0,0.0329]
[1731807230002,0.02210532,90511.0,90502.0,0.11049296]
[1731807230003,0.055221,90503.0,90502.0,0.11049296]
[1731807230387,0.055217,90510.0,90502.0,0.11049296]
[1731807230587,0.055217,90510.0,90503.0,0.055221]
[1731807231400,0.055217,90510.0,90503.0,0.16571396]
[1731807231608,0.02210532,90511.0,90503.0,0.16571396]
[1731807231784,0.055219,90507.0,90503.0,0.16571396]
[1731807231989,0.02210532,90511.0,90500.0,0.0317]
[1731807231990,0.055221,90503.0,90500.0,0.0317]
[1731807232196,0.02210532,90511.0,90500.0,0.0317]
[1731807232498,0.055218,90508.0,90503.0,0.3608]
[1731807233394,0.05824036,90504.0,90503.0,0.47129296]
[1731807233591,0.00165817,90504.0,90503.0,0.47129296]
[1731807234798,0.00165817,90504.0,90489.0,0.05523]
[1731807234999,0.00165817,90504.0,90485.0,0.3608]
[1731807235210,0.00165817,90504.0,90462.0,0.39280726]
[1731807235211,0.055246,90462.0,90451.0,0.2645067]
[1731807235415,0.10659086,90452.0,90436.0,0.0220981]
[1731807235698,0.10659086,90452.0,90436.0,0.11049296]
[1731807235699,0.055259,90442.0,90436.0,0.11049296]
[1731807235901,0.05526,90440.0,90436.0,0.11049296]
[1731807236201,0.055254,90450.0,90431.0,0.11057176]
[1731807236417,0.3608,90445.0,90431.0,0.11057176]
[1731807236592,0.3608,90445.0,90418.0,0.0303]
[1731807236593,0.3608,90437.0,90418.0,0.0303]
[1731807237109,0.3608,90437.0,90436.0,0.011]
[1731807237598,0.3608,90437.0,90418.0,0.0303]
[1731807237802,0.3608,90437.0,90424.0,0.3608]
[1731807238307,0.3608,90437.0,90411.0,0.21235425]
[1731807238308,0.055278,90410.0,90397.0,0.02209818]
[1731807238507,0.3608,90409.0,90397.0,0.02209818]
[1731807239396,0.3608,90425.0,90408.0,0.11460906]
[1731807239602,0.3608,90416.0,90408.0,0.11460906]
[1731807239997,0.3608,90425.0,90408.0,0.11460906]
[1731807240194,0.3608,90425.0,90410.0,0.3608]
[1731807240394,0.3608,90425.0,90410.0,0.416078]
[1731807240593,0.3608,90425.0,90414.0,0.055276]
[1731807241208,0.02209818,90427.0,90414.0,0.055276]
[1731807241414,0.15827272,90457.0,90452.0,0.055252]
[1731807241703,0.055234,90482.0,90456.0,0.7216]
[1731807241704,0.13030348,90474.0,90456.0,0.7216]
[1731807242008,0.055237,90478.0,90464.0,0.3608]
[1731807242207,0.13030348,90480.0,90464.0,0.3608]
[1731807242408,0.055233,90485.0,90465.0,9.228e-05]
[1731807242611,0.055233,90485.0,90464.0,0.30557286]
[1731807242904,0.055233,90485.0,90466.0,0.11053998]
[1731807243207,0.3608,90487.0,90464.0,0.30557286]
[1731807243413,0.3608,90487.0,90465.0,0.11052838]
[1731807244105,0.13030348,90486.0,90465.0,0.11052838]
[1731807244308,0.10659086,90475.0,90465.0,0.11052838]
[1731807244499,0.055239,90474.0,90449.0,0.055254]
[1731807244803,0.055239,90474.0,90456.0,0.3608]
[1731807245409,0.055242,90469.0,90457.0,0.11054182]
[1731807245609,0.055242,90469.0,90447.0,0.52752]
[1731807245610,0.055246,90463.0,90447.0,0.00148]
[1731807245805,0.84288165,90478.0,90447.0,0.3608]
[1731807245806,0.3608,90468.0,90447.0,0.3608]
[1731807245995,0.3608,90468.0,90448.0,0.11054182]
[1731807246608,0.055246,90464.0,90448.0,0.11054182]
[1731807246807,0.3608,90468.0,90438.0,0.3608]
[1731807246808,0.055248,90460.0,90438.0,0.3608]
[1731807247121,0.055248,90460.0,90449.0,0.11054915]
[1731807247407,0.055248,90460.0,90438.0,0.3608]
[1731807247708,0.055248,90460.0,90440.0,0.11055954]
[1731807247895,0.3608,90459.0,90438.0,0.3608]
[1731807248095,0.3608,90459.0,90439.0,0.11055954]
[1731807248304,0.3608,90459.0,90446.0,0.3608]
[1731807249094,0.3608,90459.0,90447.0,0.11055831]
[1731807249410,0.05525,90456.0,90447.0,0.11055831]
[1731807250308,0.05525,90456.0,90436.0,0.2048]
[1731807250309,0.15996825,90465.0,90436.0,0.0322]
[1731807250504,0.15996825,90465.0,90423.0,0.3608]
[1731807250505,0.055256,90447.0,90428.0,0.5334]
[1731807250808,0.055259,90442.0,90440.0,0.11055648]
[1731807251104,0.055259,90442.0,90428.0,0.53496]
[1731807251305,0.055251,90455.0,90428.0,0.3608]
[1731807251495,0.15996825,90445.0,90429.0,0.11056932]
[1731807251696,0.3608,90444.0,90428.0,0.3608]
[1731807251898,0.055267,90430.0,90428.0,0.3608]
[1731807252702,0.055268,90428.0,90414.0,0.055276]
[1731807252909,0.3608,90444.0,90415.0,5.799e-05]
[1731807252910,0.0357,90443.0,90415.0,5.799e-05]
[1731807253107,0.055269,90426.0,90417.0,0.11057543]
[1731807253307,0.055273,90419.0,90415.0,5.799e-05]
[1731807253602,0.15996825,90434.0,90415.0,5.799e-05]
[1731807253603,0.055275,90416.0,90415.0,5.799e-05]
[1731807255009,0.747875,90416.0,90415.0,5.799e-05]
[1731807255198,0.747875,90416.0,90400.0,0.1]
[1731807255199,0.055279,90409.0,90400.0,0.1]
[1731807256906,0.387119,90409.0,90400.0,0.1]
[1731807257608,0.055284,90401.0,90400.0,0.1]
[1731807257999,0.387124,90401.0,90400.0,0.1]
[1731807258323,0.4003694,90401.0,90400.0,0.1]
[1731807260418,0.42174075,90401.0,90400.0,0.1]
[1731807261499,0.4003694,90401.0,90400.0,0.1]
[1731807261906,0.055293,90386.0,90374.0,0.0553]
[1731807262109,0.3608,90393.0,90376.0,0.3608]
[1731807262305,0.3608,90393.0,90375.0,0.11061885]
[1731807262306,0.01309596,90392.0,90375.0,0.11061885]
[1731807262510,0.3608,90393.0,90371.0,0.0308]
[1731807262511,0.055301,90373.0,90371.0,0.0308]
[1731807262715,0.055301,90373.0,90372.0,0.11061885]
[1731807263118,0.055301,90373.0,90371.0,0.0308]
[1731807263317,0.055301,90373.0,90367.0,0.3608]
[1731807263615,0.055302,90372.0,90370.0,0.11065313]
[1731807265012,0.055295,90382.0,90372.0,0.055301]
[1731807265214,0.3608,90394.0,90380.0,0.15996825]
[1731807265522,0.01271073,90393.0,90392.0,0.055289]
[1731807265720,0.49110348,90417.0,90387.0,0.3608]
[1731807265721,0.055286,90398.0,90387.0,0.3608]
[1731807265918,0.0051,90415.0,90387.0,0.3608]
[1731807266124,0.0051,90415.0,90388.0,0.11065496]
[1731807266125,0.03203596,90414.0,90388.0,0.11065496]
[1731807266421,0.3,90415.0,90388.0,0.11065496]
[1731807266422,0.055286,90397.0,90388.0,0.11065496]
[1731807266612,0.45996825,90415.0,90388.0,0.11065496]
[1731807266613,0.055289,90393.0,90388.0,0.11065496]
[1731807267009,0.02212864,90403.0,90388.0,0.16594596]
[1731807267317,0.055283,90402.0,90395.0,0.3608]
[1731807267714,0.055284,90401.0,90395.0,0.3608]
[1731807267914,0.41742165,90417.0,90398.0,0.055285]
[1731807267915,0.05528,90408.0,90398.0,0.055285]
[1731807268118,0.3608,90417.0,90399.0,0.0324]
[1731807268324,0.05528,90407.0,90399.0,0.0324]
[1731807268517,0.05528,90407.0,90400.0,0.11062191]
[1731807269622,0.05528,90407.0,90400.0,0.16590591]
[1731807269825,0.05528,90407.0,90400.0,0.11062191]
[1731807270019,0.055276,90414.0,90407.0,0.05528]
[1731807270709,0.055276,90414.0,90408.0,0.11061518]
[1731807270916,0.055276,90414.0,90413.0,0.3608]
[1731807271140,0.00274,90418.0,90416.0,0.055274]